{"text_format":"3","workbook":"xlsx","n_sheets":1,"sheets":["Кредитний калькулятор"],"not_rendered":{"defined_names":9},"read":"whole","date_system":"1900"}

{"sheet":"Кредитний калькулятор","index":0,"n_rows":22,"n_cols":13,"rows_kept":22,"merged":[[1,1,1,3],[1,6,2,8],[1,11,2,12],[2,1,2,3],[6,5,6,6],[7,5,7,6],[10,2,10,5],[10,6,10,8],[10,9,10,12],[18,2,18,12]]}
[]
[null,"КАЛЬКУЛЯТОР РОЗРАХУНКУ",{"$nulls":4},{"v":50000,"d":"50,000₴"},{"$nulls":4},"2011-05-10"]
[null,"КРЕДИТУ НА НАВЧАННЯ "]
[]
[null,"Рекомендовано, щоб загальні щомісячні виплати позики на навчанняне перевищували 8% від першого річного заробітку."]
[]
[null,null,"Загальний поточний щомісячний платіж:",null,null,{"$f":"Кредитинаоплатунавчання[[#Totals],[Поточний щомісячний платіж]]","v":{"v":328.58590726058833,"d":"328.59₴"}},null,null,"Загальний запланований щомісячний платіж:",{"$nulls":3},{"$f":"Кредитинаоплатунавчання[[#Totals],[Запланований платіж]]","v":{"v":328.58590726058833,"d":"328.59₴"}}]
[null,null,"Відсоток місячного заробітку:",null,null,{"$f":"Кредитинаоплатунавчання[[#Totals],[Поточний щомісячний платіж]]/Прогнозованамісячназарплата","v":{"v":0.07886061774254119,"d":"7.89%"}},null,null," Відсоток місячного заробітку:",{"$nulls":3},{"$f":"Кредитинаоплатунавчання[[#Totals],[Запланований платіж]]/Прогнозованамісячназарплата","v":{"v":0.07886061774254119,"d":"7.89%"}}]
[]
[]
[null,null,"ЗАГАЛЬНІ ВІДОМОСТІ ПРО ПОЗИКУ",{"$nulls":3},"ДАТИ ПОВЕРНЕННЯ ПОЗИКИ",null,null,"ВІДОМОСТІ ПРО ПЛАТІЖ"]
[null,null,"№ позики","Позикодавець","Сума позики","Річна\nвідсоткова ставка","Дата початку","Термін (рр.)","Дата завершення","Поточний щомісячний платіж","Загальний відсоток","Запланований платіж","Річний платіж"]
[null,null,"10998M88","Позикодавець 1",{"v":10000,"d":"10,000.00₴"},{"v":0.05,"d":"5.00%"},"2011-04-01",10,{"$f":"IF(AND(Кредитинаоплатунавчання[[#This Row],[Дата початку]]>0,Кредитинаоплатунавчання[[#This Row],[Термін (рр.)]]>0),EDATE(Кредитинаоплатунавчання[[#This Row],[Дата початку]],Кредитинаоплатунавчання[[#This Row],[Термін (рр.)]]*12),\"\")","v":"2021-04-01"},{"$f":"IF(AND(Початоквиплатикредитусьогодні,COUNT(Кредитинаоплатунавчання[[#This Row],[Сума позики]]:Кредитинаоплатунавчання[[#This Row],[Термін (рр.)]])=4,Кредитинаоплатунавчання[[#This Row],[Дата початку]]<TODAY()),PMT(Кредитинаоплатунавчання[[#This Row],[Річна\nвідсоткова ставка]]/12,Кредитинаоплатунавчання[[#This Row],[Термін (рр.)]]*12,-Кредитинаоплатунавчання[[#This Row],[Сума позики]],0,0),\"\")","v":{"v":106.06551523907524,"d":"106.07₴"}},{"$f":"IFERROR((Кредитинаоплатунавчання[[#This Row],[Запланований платіж]]*Кредитинаоплатунавчання[[#This Row],[Термін (рр.)]]*12)-Кредитинаоплатунавчання[[#This Row],[Сума позики]],\"\")","v":{"v":2727.8618286890287,"d":"2,727.86₴"}},{"$f":"IF(COUNTA(Кредитинаоплатунавчання[[#This Row],[Сума позики]]:Кредитинаоплатунавчання[[#This Row],[Термін (рр.)]])<>4,\"\",PMT(Кредитинаоплатунавчання[[#This Row],[Річна\nвідсоткова ставка]]/12,Кредитинаоплатунавчання[[#This Row],[Термін (рр.)]]*12,-Кредитинаоплатунавчання[[#This Row],[Сума позики]],0,0))","v":{"v":106.06551523907524,"d":"106.07₴"}},{"$f":"IFERROR(Кредитинаоплатунавчання[[#This Row],[Запланований платіж]]*12,\"\")","v":{"v":1272.7861828689029,"d":"1,272.79₴"}}]
[null,null,"20987N87","Позикодавець 2",{"v":8000,"d":"8,000.00₴"},{"v":0.05,"d":"5.00%"},"2011-05-01",10,{"$f":"IF(AND(Кредитинаоплатунавчання[[#This Row],[Дата початку]]>0,Кредитинаоплатунавчання[[#This Row],[Термін (рр.)]]>0),EDATE(Кредитинаоплатунавчання[[#This Row],[Дата початку]],Кредитинаоплатунавчання[[#This Row],[Термін (рр.)]]*12),\"\")","v":"2021-05-01"},{"$f":"IF(AND(Початоквиплатикредитусьогодні,COUNT(Кредитинаоплатунавчання[[#This Row],[Сума позики]]:Кредитинаоплатунавчання[[#This Row],[Термін (рр.)]])=4,Кредитинаоплатунавчання[[#This Row],[Дата початку]]<TODAY()),PMT(Кредитинаоплатунавчання[[#This Row],[Річна\nвідсоткова ставка]]/12,Кредитинаоплатунавчання[[#This Row],[Термін (рр.)]]*12,-Кредитинаоплатунавчання[[#This Row],[Сума позики]],0,0),\"\")","v":{"v":84.85241219126019,"d":"84.85₴"}},{"$f":"IFERROR((Кредитинаоплатунавчання[[#This Row],[Запланований платіж]]*Кредитинаоплатунавчання[[#This Row],[Термін (рр.)]]*12)-Кредитинаоплатунавчання[[#This Row],[Сума позики]],\"\")","v":{"v":2182.289462951223,"d":"2,182.29₴"}},{"$f":"IF(COUNTA(Кредитинаоплатунавчання[[#This Row],[Сума позики]]:Кредитинаоплатунавчання[[#This Row],[Термін (рр.)]])<>4,\"\",PMT(Кредитинаоплатунавчання[[#This Row],[Річна\nвідсоткова ставка]]/12,Кредитинаоплатунавчання[[#This Row],[Термін (рр.)]]*12,-Кредитинаоплатунавчання[[#This Row],[Сума позики]],0,0))","v":{"v":84.85241219126019,"d":"84.85₴"}},{"$f":"IFERROR(Кредитинаоплатунавчання[[#This Row],[Запланований платіж]]*12,\"\")","v":{"v":1018.2289462951222,"d":"1,018.23₴"}}]
[null,null,"36785LM","Позикодавець 3",{"v":6000,"d":"6,000.00₴"},{"v":0.045,"d":"4.50%"},"2012-03-01",10,{"$f":"IF(AND(Кредитинаоплатунавчання[[#This Row],[Дата початку]]>0,Кредитинаоплатунавчання[[#This Row],[Термін (рр.)]]>0),EDATE(Кредитинаоплатунавчання[[#This Row],[Дата початку]],Кредитинаоплатунавчання[[#This Row],[Термін (рр.)]]*12),\"\")","v":"2022-03-01"},{"$f":"IF(AND(Початоквиплатикредитусьогодні,COUNT(Кредитинаоплатунавчання[[#This Row],[Сума позики]]:Кредитинаоплатунавчання[[#This Row],[Термін (рр.)]])=4,Кредитинаоплатунавчання[[#This Row],[Дата початку]]<TODAY()),PMT(Кредитинаоплатунавчання[[#This Row],[Річна\nвідсоткова ставка]]/12,Кредитинаоплатунавчання[[#This Row],[Термін (рр.)]]*12,-Кредитинаоплатунавчання[[#This Row],[Сума позики]],0,0),\"\")","v":{"v":62.18304525420918,"d":"62.18₴"}},{"$f":"IFERROR((Кредитинаоплатунавчання[[#This Row],[Запланований платіж]]*Кредитинаоплатунавчання[[#This Row],[Термін (рр.)]]*12)-Кредитинаоплатунавчання[[#This Row],[Сума позики]],\"\")","v":{"v":1461.9654305051026,"d":"1,461.97₴"}},{"$f":"IF(COUNTA(Кредитинаоплатунавчання[[#This Row],[Сума позики]]:Кредитинаоплатунавчання[[#This Row],[Термін (рр.)]])<>4,\"\",PMT(Кредитинаоплатунавчання[[#This Row],[Річна\nвідсоткова ставка]]/12,Кредитинаоплатунавчання[[#This Row],[Термін (рр.)]]*12,-Кредитинаоплатунавчання[[#This Row],[Сума позики]],0,0))","v":{"v":62.18304525420918,"d":"62.18₴"}},{"$f":"IFERROR(Кредитинаоплатунавчання[[#This Row],[Запланований платіж]]*12,\"\")","v":{"v":746.1965430505102,"d":"746.20₴"}}]
[null,null,"765R43","Позикодавець 4",{"v":4000,"d":"4,000.00₴"},{"v":0.05,"d":"5.00%"},"2012-05-01",5,{"$f":"IF(AND(Кредитинаоплатунавчання[[#This Row],[Дата початку]]>0,Кредитинаоплатунавчання[[#This Row],[Термін (рр.)]]>0),EDATE(Кредитинаоплатунавчання[[#This Row],[Дата початку]],Кредитинаоплатунавчання[[#This Row],[Термін (рр.)]]*12),\"\")","v":"2017-05-01"},{"$f":"IF(AND(Початоквиплатикредитусьогодні,COUNT(Кредитинаоплатунавчання[[#This Row],[Сума позики]]:Кредитинаоплатунавчання[[#This Row],[Термін (рр.)]])=4,Кредитинаоплатунавчання[[#This Row],[Дата початку]]<TODAY()),PMT(Кредитинаоплатунавчання[[#This Row],[Річна\nвідсоткова ставка]]/12,Кредитинаоплатунавчання[[#This Row],[Термін (рр.)]]*12,-Кредитинаоплатунавчання[[#This Row],[Сума позики]],0,0),\"\")","v":{"v":75.48493457604374,"d":"75.48₴"}},{"$f":"IFERROR((Кредитинаоплатунавчання[[#This Row],[Запланований платіж]]*Кредитинаоплатунавчання[[#This Row],[Термін (рр.)]]*12)-Кредитинаоплатунавчання[[#This Row],[Сума позики]],\"\")","v":{"v":529.0960745626253,"d":"529.10₴"}},{"$f":"IF(COUNTA(Кредитинаоплатунавчання[[#This Row],[Сума позики]]:Кредитинаоплатунавчання[[#This Row],[Термін (рр.)]])<>4,\"\",PMT(Кредитинаоплатунавчання[[#This Row],[Річна\nвідсоткова ставка]]/12,Кредитинаоплатунавчання[[#This Row],[Термін (рр.)]]*12,-Кредитинаоплатунавчання[[#This Row],[Сума позики]],0,0))","v":{"v":75.48493457604374,"d":"75.48₴"}},{"$f":"IFERROR(Кредитинаоплатунавчання[[#This Row],[Запланований платіж]]*12,\"\")","v":{"v":905.8192149125249,"d":"905.82₴"}}]
[null,null,"Разом",null,{"$f":"SUBTOTAL(109,Кредитинаоплатунавчання[Сума позики])","v":{"v":28000,"d":"28,000.00₴"}},{"$nulls":4},{"$f":"SUBTOTAL(109,Кредитинаоплатунавчання[Поточний щомісячний платіж])","v":{"v":328.58590726058833,"d":"328.59₴"}},{"$f":"SUBTOTAL(109,Кредитинаоплатунавчання[Загальний відсоток])","v":{"v":6901.21279670798,"d":"6,901.21₴"}},{"$f":"SUBTOTAL(109,Кредитинаоплатунавчання[Запланований платіж])","v":{"v":328.58590726058833,"d":"328.59₴"}},{"$f":"SUBTOTAL(109,Кредитинаоплатунавчання[Річний платіж])","v":{"v":3943.03088712706,"d":"3,943.03₴"}}]
[null,null,"Середнє",null,{"$f":"AVERAGE(Кредитинаоплатунавчання[Сума позики])","v":{"v":7000,"d":"7,000.00₴"}},{"$f":"AVERAGE(Кредитинаоплатунавчання[Річна\nвідсоткова ставка])","v":{"v":0.04875,"d":"4.88%"}},{"$nulls":4},{"$f":"AVERAGE(Кредитинаоплатунавчання[Загальний відсоток])","v":{"v":1725.303199176995,"d":"1,725.30₴"}},null,{"$f":"AVERAGE(Кредитинаоплатунавчання[Річний платіж])","v":{"v":985.757721781765,"d":"985.76₴"}}]
[]
[{"$nulls":10},"Загальна сума боргу:",null,{"$f":"Кредитинаоплатунавчання[[#Totals],[Сума позики]]+Кредитинаоплатунавчання[[#Totals],[Загальний відсоток]]","v":{"v":34901.21279670798,"d":"34,901.21₴"}}]
[]
[{"$nulls":10},"Очікуваний місячний заробіток після закінчення ВНЗ:",null,{"$f":"(Прогнозованарічназарплата/12)","v":{"v":4166.666666666667,"d":"4,166.67₴"}}]